bitfinex/quotes_BTCUSD_20241111
["timestamp","ask_amount","ask_price","bid_price","bid_amount"]
[1731341433712,0.03368762,84509.0,84492.0,0.00445896]
[1731341433972,0.11994075,84510.0,84492.0,0.00445896]
[1731341433973,0.1773144,84507.0,84492.0,0.00445896]
[1731341434189,0.11994075,84506.0,84493.0,0.1773144]
[1731341434435,0.1773144,84524.0,84493.0,0.1047]
[1731341434436,0.1773144,84496.0,84493.0,0.1047]
[1731341434667,0.11994075,84495.0,84493.0,0.1047]
[1731341435611,0.11994075,84495.0,84494.0,0.1]
[1731341436096,0.11994075,84495.0,84494.0,0.20913703]
[1731341439399,0.03368762,84505.0,84494.0,0.20913703]
[1731341439631,0.11994075,84495.0,84494.0,0.20913703]
[1731341439874,0.11994075,84495.0,84494.0,0.10913703]
[1731341440114,0.11994075,84495.0,84494.0,0.1091757]
[1731341440991,0.1773144,84514.0,84494.0,0.1091757]
[1731341441203,0.11994075,84495.0,84494.0,0.1091757]
[1731341441427,0.11994075,84495.0,84494.0,0.1047]
[1731341442044,0.11994075,84495.0,84494.0,0.205548]
[1731341442824,0.11994075,84495.0,84494.0,0.20968952]
[1731341444340,0.14294075,84495.0,84494.0,0.08987685]
[1731341444593,0.80194075,84495.0,84494.0,0.08987685]
[1731341445012,0.80194075,84495.0,84494.0,0.08573533]
[1731341445494,0.11994075,84495.0,84494.0,0.08573533]
[1731341447017,0.14294075,84495.0,84494.0,0.08573533]
[1731341447910,0.11994075,84495.0,84494.0,0.08573533]
[1731341448147,0.14294075,84495.0,84494.0,0.08573533]
[1731341448476,0.14294075,84495.0,84494.0,0.05173533]
[1731341448674,0.14294075,84495.0,84494.0,0.01036226]
[1731341448675,0.82494075,84495.0,84494.0,0.01036226]
[1731341449616,0.94874075,84495.0,84494.0,0.00658212]
[1731341449826,0.82494075,84495.0,84494.0,0.00658212]
[1731341450026,0.80194075,84495.0,84494.0,0.00658212]
[1731341450404,0.48698943,84485.0,84479.0,0.1]
[1731341450611,0.1773144,84514.0,84479.0,0.1]
[1731341450612,0.39676749,84484.0,84481.0,0.1832]
[1731341451617,0.39676749,84484.0,84482.0,0.00375827]
[1731341452391,0.39676749,84484.0,84482.0,0.19009827]
[1731341452992,0.11994075,84483.0,84482.0,0.19009827]
[1731341453197,0.11994075,84483.0,84482.0,0.09009827]
[1731341453516,0.11994075,84483.0,84482.0,0.08634]
[1731341454164,0.39676749,84484.0,84482.0,0.08634]
[1731341454516,0.39676749,84484.0,84483.0,0.00377381]
[1731341454727,0.39676749,84484.0,84483.0,0.09011381]
[1731341455903,0.39676749,84484.0,84483.0,0.12426215]
[1731341456139,0.39676749,84484.0,84483.0,0.09011381]
[1731341456958,0.39676749,84484.0,84483.0,0.22423878]
[1731341457169,0.39676749,84484.0,84483.0,0.19011381]
[1731341457579,0.39676749,84494.0,84485.0,0.005]
[1731341457756,0.001696,84495.0,84483.0,0.19011381]
[1731341457757,0.001696,84495.0,84494.0,0.005]
[1731341457959,0.001696,84495.0,84494.0,0.21994075]
[1731341458173,0.001696,84495.0,84494.0,0.18634]
[1731341458430,0.001696,84495.0,84494.0,0.30628075]
[1731341458711,0.001696,84495.0,84494.0,0.31128075]
[1731341459030,0.001696,84495.0,84494.0,0.40155745]
[1731341459233,0.001696,84495.0,84494.0,0.08634]
[1731341459461,0.00042134,84495.0,84494.0,0.09634]
[1731341459645,0.39676749,84502.0,84501.0,0.005]
[1731341459852,0.00217035,84504.0,84502.0,0.1]
[1731341459853,0.39676749,84503.0,84502.0,0.1]
[1731341460045,0.39676749,84503.0,84502.0,0.2545608]
[1731341460246,0.39676749,84503.0,84502.0,0.18634]
[1731341460672,0.39676749,84503.0,84502.0,0.19134]
[1731341460880,0.39676749,84503.0,84502.0,0.2716248]
[1731341461135,0.39676749,84503.0,84502.0,0.23752165]
[1731341461370,0.39676749,84503.0,84502.0,0.18634]
[1731341461563,0.39676749,84503.0,84502.0,0.2237612]
[1731341461770,0.39676749,84503.0,84502.0,0.18963292]
[1731341462276,0.39676749,84503.0,84502.0,0.08963292]
[1731341462485,0.39676749,84503.0,84502.0,0.18963292]
[1731341462654,0.39676749,84503.0,84502.0,0.19463292]
[1731341463226,0.39676749,84503.0,84502.0,0.29708536]
[1731341463432,0.39676749,84503.0,84502.0,0.19463292]
[1731341463657,0.39676749,84503.0,84502.0,0.18963292]
[1731341463816,0.39676749,84503.0,84502.0,0.08963292]
[1731341464018,0.39676749,84503.0,84502.0,0.19463292]
[1731341464242,0.001696,84541.0,84504.0,0.023]
[1731341464448,0.1773144,84515.0,84514.0,0.005]
[1731341464645,0.1773144,84515.0,84514.0,0.19134]
[1731341464866,0.001696,84541.0,84514.0,0.0946124]
[1731341465065,0.001696,84541.0,84514.0,0.0896124]
[1731341465265,0.1773144,84515.0,84514.0,0.0896124]
[1731341465476,0.11994075,84515.0,84514.0,0.14082776]
[1731341465618,0.11994075,84515.0,84514.0,0.0896124]
[1731341465820,0.14294075,84515.0,84514.0,0.0896124]
[1731341466282,0.14294075,84515.0,84490.0,0.1773144]
[1731341466651,0.14294075,84515.0,84499.0,0.1773144]
[1731341466652,0.023,84508.0,84499.0,0.1773144]
[1731341466788,0.023,84508.0,84495.0,0.000848]
[1731341466789,0.023,84502.0,84477.0,0.03415016]
[1731341467015,0.023,84500.0,84490.0,0.1773144]
[1731341467223,0.3265232,84501.0,84490.0,0.1773144]
[1731341467423,0.3265232,84501.0,84471.0,0.005]
[1731341467424,0.001696,84503.0,84491.0,0.1773144]
[1731341467628,0.1773144,84502.0,84495.0,0.03415016]
[1731341467790,0.11994075,84501.0,84497.0,0.03415016]
[1731341467995,0.11994075,84501.0,84493.0,0.03415016]
[1731341468189,0.1773144,84499.0,84498.0,0.03415016]
[1731341468514,0.11994075,84499.0,84498.0,0.25250083]
[1731341468732,0.06680234,84499.0,84498.0,0.23750886]
[1731341469335,0.06680234,84499.0,84498.0,0.28881795]
[1731341469535,0.06680234,84499.0,84498.0,0.23750886]
[1731341469738,0.06680234,84499.0,84498.0,0.22570033]
[1731341469938,0.001696,84503.0,84499.0,0.1]
[1731341470137,0.001696,84503.0,84500.0,0.00738033]
[1731341470349,0.001696,84503.0,84501.0,0.19286702]
[1731341470687,0.001696,84503.0,84502.0,0.0073795]
[1731341470916,0.1773144,84515.0,84503.0,0.1]
[1731341471115,0.11981234,84514.0,84513.0,0.03420516]
[1731341471240,0.11981234,84514.0,84513.0,0.01918694]
[1731341471442,0.11419499,84514.0,84513.0,0.23750694]
[1731341471661,0.11419499,84514.0,84513.0,0.22569959]
[1731341472394,0.11419499,84514.0,84513.0,0.27700733]
[1731341472695,0.11419499,84514.0,84513.0,0.22569959]
[1731341472897,0.11419499,84514.0,84513.0,0.27710045]
[1731341473120,0.11419499,84514.0,84513.0,0.22569959]
[1731341473600,0.10799138,84514.0,84513.0,0.22569959]
[1731341473836,0.03241329,84508.0,84506.0,0.08548669]
[1731341474054,0.03241329,84508.0,84494.0,0.005]
[1731341474055,0.03241329,84508.0,84495.0,0.105]
[1731341474228,0.03241329,84508.0,84495.0,0.20758403]
[1731341474369,0.03241329,84508.0,84504.0,0.005]
[1731341474602,0.03241329,84508.0,84507.0,0.005]
[1731341474820,0.001696,84516.0,84515.0,0.005]
[1731341475018,0.001696,84516.0,84515.0,0.12994075]
[1731341475219,0.03410929,84541.0,84525.0,0.005]
[1731341475420,0.03410929,84541.0,84526.0,0.10291373]
[1731341475678,0.03410929,84541.0,84527.0,0.10291373]
[1731341475880,0.03410929,84541.0,84528.0,0.1]
[1731341476236,0.1773144,84536.0,84528.0,0.2183516]
[1731341476438,0.11994075,84535.0,84528.0,0.2183516]
[1731341476656,0.11994075,84535.0,84528.0,0.18593831]
[1731341476862,0.11994075,84535.0,84533.0,0.08585116]
[1731341477072,0.11994075,84535.0,84534.0,0.05152656]
[1731341477321,0.11994075,84535.0,84534.0,0.16987816]
[1731341477774,0.11994075,84535.0,84534.0,0.1183516]
[1731341477920,0.023,84534.0,84520.0,0.08585116]
[1731341478122,0.11994075,84526.0,84521.0,0.1773144]
[1731341478342,0.11994075,84526.0,84522.0,0.01180714]
[1731341478505,0.023,84534.0,84518.0,0.08585116]
[1731341478506,0.29725515,84523.0,84518.0,0.08585116]
[1731341478706,0.29725515,84523.0,84492.0,0.1773144]
[1731341478707,0.11994075,84519.0,84514.0,0.08585116]
[1731341478913,0.11994075,84517.0,84512.0,0.08585116]
[1731341479334,0.11994075,84517.0,84514.0,0.08585116]
[1731341479535,0.11994075,84517.0,84515.0,0.08585116]
[1731341479738,0.11994075,84517.0,84515.0,0.1183516]
[1731341479970,0.1773144,84536.0,84516.0,0.1]
[1731341480177,0.1773144,84527.0,84525.0,0.0859297]
[1731341480309,0.001696,84541.0,84520.0,0.005]
[1731341480505,0.001696,84535.0,84533.0,0.08589085]
[1731341480781,0.001696,84535.0,84534.0,0.1]
[1731341480988,0.001696,84535.0,84534.0,0.2183516]
[1731341481367,0.12163675,84535.0,84534.0,0.2183516]
[1731341481570,0.12163675,84535.0,84534.0,0.1183516]
[1731341482569,0.001696,84535.0,84534.0,0.2183516]
[1731341483078,0.12163675,84535.0,84534.0,0.2183516]
[1731341483275,0.001696,84535.0,84534.0,0.2183516]
[1731341483491,0.00067,84566.0,84565.0,0.005]
[1731341483716,0.00067,84566.0,84542.0,0.1]
[1731341483717,0.00067,84566.0,84543.0,0.005]
[1731341483929,0.1773144,84562.0,84550.0,0.01]
[1731341484629,0.00067,84566.0,84562.0,0.005]
[1731341484842,0.1773144,84565.0,84562.0,0.005]
[1731341485047,0.00067,84566.0,84562.0,0.005]
[1731341485476,0.00067,84566.0,84563.0,0.1]
[1731341485698,0.00067,84566.0,84563.0,0.2183516]
[1731341485920,0.00067,84566.0,84564.0,0.00737375]
[1731341486152,0.00067,84566.0,84565.0,0.00737375]
[1731341486360,0.00067,84566.0,84565.0,0.22572535]
[1731341488016,0.02367,84566.0,84565.0,0.22572535]
[1731341488599,0.02367,84566.0,84550.0,0.1773144]
[1731341489013,0.1773144,84565.0,84536.0,0.11994075]
[1731341489282,0.02367,84566.0,84546.0,0.1773144]
[1731341489488,0.1773144,84561.0,84536.0,0.11994075]
[1731341489692,0.02367,84566.0,84545.0,0.1773144]
[1731341489916,0.1773144,84563.0,84546.0,0.29725515]
[1731341490247,0.00067,84566.0,84552.0,0.09480417]
[1731341490458,0.1773144,84560.0,84553.0,0.11994075]
[1731341490672,0.00067,84566.0,84554.0,0.1]
[1731341490888,0.00067,84566.0,84553.0,0.04572]
[1731341491110,0.00067,84566.0,84554.0,0.04572]
[1731341491366,0.00067,84566.0,84548.0,0.05072]
[1731341491585,0.00067,84566.0,84521.0,0.05920878]
[1731341491586,0.682,84570.0,84556.0,0.105]
[1731341491831,0.1773144,84557.0,84556.0,0.1]
[1731341492043,0.1773144,84557.0,84542.0,0.04572]
[1731341492269,0.1823144,84556.0,84542.0,0.04572]
[1731341492482,0.005,84554.0,84542.0,0.04572]
[1731341492693,0.63628,84541.0,84529.0,0.1773144]
[1731341492961,0.77922075,84540.0,84529.0,0.1773144]
[1731341493176,0.65928,84540.0,84539.0,0.06828776]
[1731341493428,0.63628,84540.0,84535.0,0.05122226]
[1731341493654,0.63628,84540.0,84531.0,0.06828776]
[1731341493655,0.682,84548.0,84539.0,0.11994075]
[1731341493888,0.1773144,84558.0,84543.0,0.0853597]
[1731341494114,0.1773144,84558.0,84553.0,0.06826942]
[1731341494334,0.001696,84566.0,84546.0,0.0779]
[1731341494335,0.1773144,84557.0,84556.0,0.08533473]
[1731341494548,0.001696,84566.0,84557.0,0.1]
[1731341494765,0.001696,84566.0,84562.0,0.06821517]
[1731341495402,0.001696,84566.0,84564.0,0.05115296]
[1731341495618,0.001696,84566.0,84561.0,0.1]
[1731341495619,0.023,84565.0,84561.0,0.1]
[1731341495852,0.023,84565.0,84562.0,0.03411969]
[1731341496065,0.001696,84566.0,84562.0,0.03411969]
[1731341496273,0.68267,84580.0,84563.0,0.05115232]
[1731341496274,0.1773144,84569.0,84563.0,0.05115232]
[1731341496485,0.1406384,84579.0,84568.0,0.0340782]
[1731341496709,0.11994075,84578.0,84564.0,0.0340782]
[1731341496913,0.00067,84580.0,84566.0,0.0340782]
[1731341497130,0.00067,84580.0,84571.0,0.0340782]
[1731341497131,0.1773144,84572.0,84571.0,0.0340782]
[1731341497281,0.11994075,84572.0,84568.0,0.03406403]
[1731341497485,0.11994075,84571.0,84563.0,0.1]
[1731341498039,0.682,84579.0,84563.0,0.1]
[1731341498040,0.1773144,84578.0,84563.0,0.1]
[1731341498161,0.023,84576.0,84563.0,0.1]
[1731341498357,0.023,84574.0,84563.0,0.1]
[1731341498581,0.023,84572.0,84563.0,0.1]
[1731341498792,0.023,84570.0,84563.0,0.1]
[1731341499013,0.023,84570.0,84555.0,0.13406403]
[1731341499265,0.1773144,84578.0,84555.0,0.13406403]
[1731341499266,0.2003144,84578.0,84556.0,0.13406403]
[1731341499445,0.023,84576.0,84558.0,0.03406403]
[1731341499658,0.14294075,84576.0,84559.0,0.03406403]
[1731341499860,0.1773144,84578.0,84564.0,0.03406403]
[1731341500033,0.1773144,84578.0,84565.0,0.03406403]
[1731341500233,0.1773144,84578.0,84566.0,0.03406403]
[1731341500234,0.1773144,84569.0,84566.0,0.03406403]
[1731341500455,0.11994075,84577.0,84563.0,0.03406403]
[1731341500654,0.11994075,84577.0,84564.0,0.00737306]
[1731341500835,0.1773144,84578.0,84565.0,0.00737306]
[1731341501201,0.1773144,84578.0,84566.0,0.00737306]
[1731341501355,0.11994075,84577.0,84567.0,0.00737306]
[1731341501534,0.11994075,84577.0,84559.0,0.1]
[1731341501535,0.10882874,84577.0,84568.0,0.00737306]
[1731341501755,0.10882874,84577.0,84569.0,0.00737306]
[1731341501959,0.51580884,84579.0,84570.0,0.00737306]
[1731341502158,0.00067,84580.0,84561.0,0.05115232]
[1731341502159,0.45135529,84564.0,84561.0,0.07370834]
[1731341502356,0.44738117,84564.0,84560.0,0.05115232]
[1731341502675,0.44738117,84564.0,84559.0,0.2773144]
[1731341502676,0.44738117,84564.0,84561.0,0.05115232]
[1731341502877,0.44738117,84563.0,84562.0,0.05115232]
[1731341503087,0.44738117,84563.0,84562.0,0.27109307]
[1731341503290,0.44738117,84563.0,84562.0,0.1]
[1731341504168,0.44738117,84563.0,84560.0,0.05115232]
[1731341504373,0.44738117,84563.0,84561.0,0.11994075]
[1731341504574,0.44738117,84563.0,84562.0,0.1]
[1731341504926,0.44738117,84563.0,84562.0,0.15115232]
[1731341505075,0.44738117,84563.0,84562.0,0.1]
[1731341506501,0.44738117,84563.0,84562.0,0.09]
[1731341507166,0.44738117,84563.0,84562.0,0.21474492]
[1731341507397,0.00067,84580.0,84569.0,0.005]
[1731341507609,0.1773144,84570.0,84569.0,0.05598057]
[1731341507817,0.00067,84580.0,84569.0,0.005]
[1731341508084,0.00067,84580.0,84569.0,0.05597181]
[1731341508232,0.00067,84580.0,84570.0,0.11994075]
[1731341508448,0.00119,84600.0,84582.0,0.00393435]
[1731341508657,0.00106565,84589.0,84584.0,0.1]
[1731341508862,0.1773144,84591.0,84584.0,0.1]
[1731341509089,0.00106565,84585.0,84584.0,0.1]
[1731341509291,0.00106565,84578.0,84563.0,0.1]
[1731341509494,0.11994075,84590.0,84562.0,0.22828621]
[1731341509495,0.00106565,84577.0,84572.0,0.1]
[1731341510094,0.00106565,84569.0,84558.0,0.0764]
[1731341510302,0.00106565,84557.0,84556.0,0.1773144]
[1731341510667,0.00106565,84557.0,84543.0,0.0787]
[1731341510668,0.00106565,84547.0,84546.0,0.05097181]
[1731341510894,0.11994075,84557.0,84540.0,0.05096023]
[1731341510895,0.00056565,84541.0,84540.0,0.05096023]
[1731341511111,0.00056565,84579.0,84551.0,0.00443435]
[1731341511372,0.1773144,84561.0,84544.0,0.05096023]
[1731341511610,0.1773144,84570.0,84544.0,0.05096023]
[1731341511611,0.00056565,84565.0,84548.0,0.05096023]
[1731341511831,0.1773144,84570.0,84549.0,0.11994075]
[1731341512012,0.1773144,84569.0,84553.0,0.05096023]
[1731341512309,0.1773144,84569.0,84551.0,0.00443435]
[1731341512310,0.1773144,84569.0,84556.0,0.0339521]
[1731341512527,0.1773144,84569.0,84558.0,0.1]
[1731341512898,0.1773144,84569.0,84556.0,0.0339521]
[1731341513102,0.1773144,84569.0,84555.0,0.0339521]
[1731341513340,0.1773144,84569.0,84557.0,0.0339521]
[1731341513553,0.1773144,84569.0,84556.0,0.1]
[1731341513554,0.1773144,84586.0,84571.0,0.08980417]
[1731341513756,0.1773144,84573.0,84572.0,0.31417927]
[1731341513960,0.1773144,84586.0,84574.0,0.00443435]
[1731341514177,0.1773144,84577.0,84576.0,0.1]
[1731341514363,0.1773144,84586.0,84576.0,0.14137392]
[1731341514520,0.00056565,84582.0,84577.0,0.00737238]
[1731341514716,0.00056565,84582.0,84578.0,0.00737238]
[1731341514949,0.00056565,84582.0,84566.0,0.03400154]
[1731341514950,0.17788005,84580.0,84579.0,0.00737238]
[1731341515117,0.17788005,84580.0,84556.0,0.05099944]
[1731341515118,0.00056565,84561.0,84556.0,0.05099944]
[1731341515321,0.00056565,84553.0,84551.0,0.03400154]
[1731341515532,0.00056565,84553.0,84546.0,0.03400154]
[1731341515899,0.00056565,84553.0,84545.0,0.03400154]
[1731341516177,0.00056565,84553.0,84549.0,0.005]
[1731341516723,0.00056565,84553.0,84549.0,0.03900154]
[1731341517135,0.00056565,84553.0,84551.0,0.03406715]
[1731341517340,0.1773144,84560.0,84552.0,0.05110073]
[1731341517587,0.1773144,84560.0,84555.0,0.0340846]
[1731341517758,0.1764144,84573.0,84555.0,0.0340846]
[1731341517962,0.1764144,84573.0,84558.0,0.02704297]
[1731341517963,0.07680487,84572.0,84558.0,0.02704297]
[1731341518175,0.07680487,84572.0,84558.0,0.05110073]
[1731341518377,0.07680487,84572.0,84557.0,0.05110073]
[1731341518620,0.07680487,84572.0,84549.0,0.005]
[1731341518621,0.005,84540.0,84536.0,0.10220146]
[1731341518777,0.005,84552.0,84537.0,0.1773144]
[1731341518778,0.682,84539.0,84537.0,0.1773144]
[1731341519149,0.682,84539.0,84528.0,0.1781624]
[1731341519661,0.80194075,84539.0,84529.0,0.1773144]
[1731341519864,0.80194075,84539.0,84528.0,0.000848]
[1731341520641,0.82994075,84539.0,84528.0,0.000848]
[1731341520869,0.682,84539.0,84528.0,0.1781624]
[1731341521097,0.005,84558.0,84528.0,0.1781624]
[1731341521098,0.682,84555.0,84528.0,0.1781624]
[1731341521306,0.1773144,84549.0,84529.0,0.2425]
[1731341521519,0.11994075,84554.0,84529.0,0.2425]
[1731341521520,0.1773144,84554.0,84529.0,0.4198144]
[1731341521766,0.682,84555.0,84529.0,0.4198144]
[1731341521767,0.682,84555.0,84529.0,0.4248144]
[1731341521953,0.1773144,84554.0,84540.0,0.1]
[1731341522133,0.1773144,84554.0,84542.0,0.1]
[1731341522345,0.1773144,84554.0,84542.0,0.20220146]
[1731341522546,0.11994075,84553.0,84542.0,0.1]
[1731341522705,0.11994075,84553.0,84529.0,0.2425]
[1731341522706,0.682,84552.0,84529.0,0.52201586]
[1731341523047,0.11994075,84551.0,84529.0,0.4198144]
[1731341523690,0.682,84552.0,84540.0,0.1773144]
[1731341523892,0.29725515,84551.0,84529.0,0.2425]
[1731341524096,0.29725515,84551.0,84530.0,0.1773144]
[1731341524305,0.1773144,84541.0,84529.0,0.2425]
[1731341524505,0.11994075,84540.0,84528.0,0.303]
[1731341524644,0.11994075,84540.0,84520.0,0.1773144]
[1731341524844,0.29725515,84539.0,84512.0,0.10220146]
[1731341525193,0.1773144,84530.0,84510.0,0.34470146]
[1731341525392,0.11994075,84529.0,84511.0,0.1773144]
[1731341525708,0.11994075,84529.0,84518.0,0.08553994]
[1731341525844,0.1773144,84528.0,84518.0,0.08553994]
[1731341526043,0.11994075,84527.0,84518.0,0.08553994]
[1731341526391,0.11994075,84527.0,84519.0,0.08553994]
[1731341526589,0.11984075,84527.0,84523.0,0.06843915]
[1731341526749,0.12484075,84527.0,84520.0,0.06843915]
[1731341526953,0.1773144,84528.0,84515.0,0.06843915]
[1731341526954,0.028,84518.0,84515.0,0.06843915]
[1731341527176,0.005,84514.0,84508.0,0.06843915]
[1731341527383,0.14294075,84513.0,84509.0,0.00737944]
[1731341527592,0.14294075,84513.0,84503.0,0.1773144]
[1731341527593,0.14294075,84513.0,84510.0,0.00737944]
[1731341527789,0.14294075,84513.0,84495.0,0.000848]
[1731341527790,0.11994075,84513.0,84511.0,0.00737944]
[1731341527988,0.023,84512.0,84508.0,0.03424645]
[1731341528202,0.11994075,84511.0,84509.0,0.00738006]
[1731341528429,0.14294075,84511.0,84510.0,0.00738006]
[1731341528785,0.11994075,84511.0,84510.0,0.00738006]
[1731341530129,0.14294075,84511.0,84510.0,0.00738006]
[1731341530685,0.14794075,84511.0,84510.0,0.00738006]
[1731341531487,0.11994075,84511.0,84510.0,0.00738006]
[1731341532015,0.11994075,84511.0,84497.0,0.04893133]
[1731341532210,0.1823144,84521.0,84495.0,0.100848]
[1731341532211,0.11994075,84510.0,84495.0,0.000848]
[1731341532510,0.11994075,84510.0,84496.0,0.1]
[1731341533100,0.1773144,84521.0,84496.0,0.1]
[1731341533379,0.1773144,84521.0,84495.0,0.06928715]
[1731341533380,0.1773144,84510.0,84495.0,0.06928715]
[1731341533556,0.11994075,84520.0,84495.0,0.000848]
[1731341533969,0.11994075,84520.0,84501.0,0.1]
[1731341534346,0.077,84548.0,84504.0,0.1]
[1731341534549,0.077,84548.0,84503.0,0.25075355]
[1731341534550,0.1773144,84530.0,84512.0,0.06843915]
[1731341534758,0.077,84569.0,84516.0,0.16843915]
[1731341534982,0.077,84569.0,84515.0,0.0489]
[1731341534983,0.1773144,84530.0,84526.0,0.06843915]
[1731341535394,0.005,84557.0,84525.0,0.06843915]
[1731341535600,0.005,84557.0,84526.0,0.00315257]
[1731341536048,0.005,84557.0,84526.0,0.17159172]
[1731341536242,0.005,84557.0,84527.0,0.16843915]
[1731341536485,0.1773144,84540.0,84528.0,0.06843915]
[1731341536822,0.1773144,84539.0,84528.0,0.06843915]
[1731341536999,0.005,84569.0,84534.0,0.1]
[1731341537187,0.1773144,84549.0,84536.0,0.1]
[1731341537388,0.005,84582.0,84538.0,0.06843915]
[1731341537586,0.0801,84584.0,84546.0,0.1]
[1731341537785,0.1773144,84592.0,84547.0,0.21994075]
[1731341537786,0.1773144,84557.0,84547.0,0.21994075]
[1731341537996,0.1773144,84566.0,84547.0,0.21994075]
[1731341538486,0.1773144,84592.0,84554.0,0.07315642]
[1731341538487,0.1773144,84565.0,84554.0,0.07315642]
[1731341538690,0.1773144,84592.0,84557.0,0.1773144]
[1731341538855,0.1132648,84575.0,84561.0,0.005]
[1731341539236,0.1132648,84575.0,84562.0,0.0836]
[1731341539439,0.1773144,84592.0,84567.0,0.06815642]
[1731341539738,0.1773144,84583.0,84570.0,0.07315642]
[1731341539896,0.1773144,84583.0,84574.0,0.06815642]
[1731341540235,0.1773144,84592.0,84576.0,0.1]
[1731341540236,0.1773144,84582.0,84576.0,0.1]
[1731341540564,0.1773144,84592.0,84576.0,0.1]
[1731341540764,0.11994075,84591.0,84576.0,0.1]
[1731341541151,0.11994075,84591.0,84560.0,0.1773144]
[1731341541152,0.11994075,84591.0,84564.0,0.05103442]
[1731341541358,0.11994075,84591.0,84576.0,0.1]
[1731341541600,0.1773144,84590.0,84576.0,0.1]
[1731341542384,0.1773144,84590.0,84574.0,0.03401814]
[1731341542612,0.1773144,84590.0,84576.0,0.1]
[1731341542858,0.11994075,84589.0,84576.0,0.1]
[1731341543527,0.00067,84599.0,84586.0,0.1773144]
[1731341543730,0.1773144,84592.0,84587.0,0.01179496]
[1731341543976,0.00067,84599.0,84588.0,0.00737168]
[1731341544437,0.00067,84599.0,84589.0,0.00737168]
[1731341544643,0.00067,84599.0,84590.0,0.00737168]
[1731341544903,0.1773144,84592.0,84591.0,0.00737168]
[1731341545149,0.11994075,84592.0,84591.0,0.00737168]
[1731341546323,0.00067,84599.0,84591.0,0.00737168]
[1731341546529,0.00067,84599.0,84592.0,0.00737168]
[1731341546751,0.023,84598.0,84592.0,0.00737168]
[1731341547207,0.00067,84599.0,84592.0,0.00737168]
[1731341547643,0.00067,84599.0,84584.0,0.1]
[1731341547854,0.00067,84599.0,84578.0,0.0339914]
[1731341548054,0.00067,84599.0,84584.0,0.1]
[1731341548536,0.1773144,84591.0,84584.0,0.1]
[1731341548783,0.11994075,84590.0,84584.0,0.1]
[1731341549041,0.00067,84599.0,84584.0,0.1]
[1731341550152,0.00067,84599.0,84579.0,0.0339914]
[1731341550365,0.00067,84599.0,84580.0,0.1]
[1731341551509,0.00067,84599.0,84575.0,0.0339914]
[1731341551637,0.00067,84599.0,84580.0,0.1]
[1731341552529,0.00067,84599.0,84581.0,0.11994075]
[1731341552751,0.00067,84599.0,84582.0,0.1339574]
[1731341552960,0.00067,84599.0,84585.0,0.0339574]
[1731341553170,0.00067,84599.0,84583.0,0.0339574]
[1731341553388,0.00067,84599.0,84592.0,0.1]
[1731341553601,0.00067,84599.0,84592.0,0.21994075]
[1731341553879,0.00067,84599.0,84594.0,0.1]
[1731341554757,0.00067,84599.0,84594.0,0.1339574]
[1731341555404,3.80466092,84611.0,84596.0,0.1]
[1731341555614,0.1773144,84610.0,84598.0,0.1]
[1731341555829,0.1773144,84610.0,84599.0,0.1]
[1731341556058,3.80466092,84611.0,84599.0,0.1]
[1731341556488,3.80466092,84611.0,84599.0,0.25389815]
[1731341556702,3.80466092,84611.0,84603.0,0.1]
[1731341556932,3.80466092,84611.0,84605.0,0.1]
[1731341556933,0.1773144,84610.0,84605.0,0.1]
[1731341557138,3.80466092,84611.0,84607.0,0.1]
[1731341557718,0.1773144,84610.0,84607.0,0.1]
[1731341557950,3.80466092,84611.0,84608.0,0.1773144]
[1731341558219,3.80466092,84611.0,84595.0,0.1]
[1731341558428,3.80466092,84611.0,84597.0,0.1]
[1731341558644,3.10186671,84611.0,84610.0,0.1]
[1731341559728,3.10186671,84611.0,84599.0,0.1]
[1731341559965,3.10186671,84611.0,84604.0,0.1]
[1731341560659,3.10186671,84611.0,84594.0,0.1773144]
[1731341560660,2.89535025,84611.0,84610.0,0.4054144]
[1731341560901,2.26886955,84611.0,84610.0,0.34804075]
[1731341561117,2.26886955,84611.0,84610.0,0.2231]
[1731341561322,2.26886955,84611.0,84610.0,0.34804075]
[1731341561580,2.25266328,84611.0,84610.0,0.34804075]
[1731341561778,1.71998046,84611.0,84610.0,0.34804075]
[1731341562192,1.70182665,84611.0,84610.0,0.34804075]
[1731341563526,1.70182665,84611.0,84610.0,0.34304075]
[1731341563740,1.70182665,84611.0,84610.0,0.34804075]
[1731341563966,1.70182665,84611.0,84610.0,0.2231]
[1731341564814,1.70182665,84611.0,84610.0,0.0756]
[1731341565025,1.70182665,84611.0,84602.0,0.005]
[1731341565275,1.70182665,84611.0,84604.0,0.1]
[1731341565474,1.70182665,84611.0,84597.0,0.1773144]
[1731341565711,1.70182665,84611.0,84596.0,0.03375941]
[1731341565712,0.29725515,84610.0,84596.0,0.03375941]
[1731341565918,0.29725515,84610.0,84598.0,0.1773144]
[1731341565919,0.11994075,84610.0,84598.0,0.1773144]
[1731341566339,0.29725515,84610.0,84596.0,0.03375941]
[1731341566547,1.70182665,84611.0,84601.0,0.1773144]
[1731341566718,0.1773144,84610.0,84596.0,0.03375941]
[1731341566927,1.70182665,84611.0,84596.0,0.03375941]
[1731341566928,1.70182665,84611.0,84597.0,0.1773144]
[1731341567136,1.70182665,84611.0,84596.0,0.03375941]
[1731341567137,0.1773144,84607.0,84596.0,0.03375941]
[1731341567335,0.11994075,84606.0,84598.0,0.1773144]
[1731341567539,1.70182665,84611.0,84598.0,0.1773144]
[1731341567739,1.70182665,84611.0,84596.0,0.03375941]
[1731341567740,1.69716017,84611.0,84596.0,0.03375941]
[1731341567898,0.1773144,84607.0,84596.0,0.03375941]
[1731341568098,1.69716017,84611.0,84598.0,0.1773144]
[1731341568309,1.69716017,84611.0,84592.0,0.1]
[1731341568310,0.1773144,84610.0,84592.0,0.1]
[1731341568770,0.11994075,84609.0,84592.0,0.1]
[1731341568936,0.10140005,84609.0,84592.0,0.1]
[1731341570819,1.68297485,84611.0,84600.0,0.1]
[1731341571038,0.1773144,84609.0,84600.0,0.1]
[1731341571261,1.68297485,84611.0,84600.0,0.1]
[1731341571466,1.68136567,84611.0,84600.0,0.1]
[1731341571920,1.68136567,84611.0,84591.0,0.2425]
[1731341571921,0.11994075,84610.0,84592.0,0.2773144]
[1731341572369,0.1773144,84607.0,84592.0,0.2773144]
[1731341572584,0.1773144,84607.0,84592.0,0.1]
[1731341572585,0.11994075,84606.0,84592.0,0.1]
[1731341572799,0.11994075,84606.0,84592.0,0.2773144]
[1731341573696,0.11994075,84606.0,84581.0,0.1]